bitfinex/quotes_BTCUSD_20241103
["timestamp","ask_amount","ask_price","bid_price","bid_amount"]
[1730597286241,0.63616302,69107.0,69106.0,0.00082]
[1730597286445,0.62264724,69107.0,69106.0,0.00082]
[1730597286648,0.63615476,69107.0,69106.0,0.00082]
[1730597287066,0.63615476,69107.0,69106.0,0.14412522]
[1730597287452,0.63615476,69107.0,69106.0,0.10082]
[1730597288351,0.63615476,69107.0,69106.0,0.00082]
[1730597288544,0.63615351,69107.0,69106.0,0.00082]
[1730597288807,0.63615351,69107.0,69106.0,0.16576636]
[1730597289017,0.62264724,69107.0,69106.0,0.16576636]
[1730597289245,0.63615344,69107.0,69106.0,0.16576636]
[1730597289691,0.62264724,69107.0,69106.0,0.32567825]
[1730597290128,0.63615344,69107.0,69106.0,0.16576636]
[1730597290785,0.63615344,69107.0,69106.0,0.32570895]
[1730597290998,0.63615344,69107.0,69106.0,0.22570895]
[1730597291221,0.63615344,69107.0,69106.0,0.32570895]
[1730597291463,0.63615344,69107.0,69106.0,0.16576636]
[1730597291687,0.63615344,69107.0,69106.0,0.32570576]
[1730597291907,0.63615344,69107.0,69106.0,0.32570672]
[1730597293447,0.63615344,69107.0,69106.0,0.06576636]
[1730597293664,0.63615273,69107.0,69106.0,0.00082]
[1730597294496,0.63615273,69107.0,69106.0,0.06576636]
[1730597295144,0.63615273,69107.0,69106.0,0.00082]
[1730597295387,0.74695337,69107.0,69106.0,0.00082]
[1730597295597,1.05671821,69107.0,69106.0,0.00082]
[1730597296581,0.005,69100.0,69095.0,0.04332621]
[1730597296760,0.74233203,69100.0,69095.0,0.04332621]
[1730597296956,0.73020788,69100.0,69095.0,0.04332621]
[1730597297187,0.74370449,69100.0,69095.0,0.04332621]
[1730597297531,0.88842149,69100.0,69093.0,0.04332621]
[1730597297968,0.91000807,69100.0,69091.0,0.04332621]
[1730597298176,0.91000807,69100.0,69090.0,0.04332621]
[1730597299052,1.04846332,69100.0,69088.0,0.04332621]
[1730597299259,1.04846332,69100.0,69087.0,0.04332621]
[1730597299481,1.04846332,69100.0,69085.0,0.00082]
[1730597307706,1.04836259,69100.0,69085.0,0.00082]
[1730597309704,1.04836259,69100.0,69099.0,0.00298948]
[1730597313862,0.6543897,69100.0,69099.0,0.00298948]
[1730597314076,0.63286203,69100.0,69099.0,0.00298948]
[1730597314729,0.76412424,69100.0,69099.0,0.00298948]
[1730597314937,0.77758688,69100.0,69099.0,0.00298948]
[1730597315829,0.79912956,69100.0,69099.0,0.00298948]
[1730597316028,0.77758688,69100.0,69099.0,0.00298948]
[1730597316232,0.79913281,69100.0,69099.0,0.00298948]
[1730597317062,0.65441581,69100.0,69099.0,0.00298948]
[1730597317610,0.63286988,69100.0,69099.0,0.00298948]
[1730597318022,0.61940724,69100.0,69099.0,0.00298948]
[1730597318837,0.65442887,69100.0,69099.0,0.00298948]
[1730597319410,0.6328771,69100.0,69099.0,0.00298948]
[1730597319840,0.66790432,69100.0,69099.0,0.00298948]
[1730597321202,0.66791307,69100.0,69099.0,0.00298948]
[1730597326510,0.81263007,69100.0,69099.0,0.00298948]
[1730597326706,0.95108532,69100.0,69099.0,0.00298948]
[1730597329832,0.93761546,69100.0,69099.0,0.00298948]
[1730597330889,0.93771823,69100.0,69099.0,0.00298948]
[1730597334682,0.90257949,69100.0,69099.0,0.00298948]
[1730597334894,0.93771917,69100.0,69099.0,0.00298948]
[1730597336569,0.93971917,69100.0,69099.0,0.00298948]
[1730597336743,0.93771917,69100.0,69099.0,0.00298948]
[1730597337509,0.93971917,69100.0,69099.0,0.00298948]
[1730597338032,0.93771917,69100.0,69099.0,0.00298948]
[1730597341282,0.93971917,69100.0,69099.0,0.00298948]
[1730597341481,0.93771917,69100.0,69099.0,0.00298948]
[1730597351539,0.90257949,69100.0,69099.0,0.00298948]
[1730597351750,0.9377223,69100.0,69099.0,0.00298948]
[1730597352820,0.9397223,69100.0,69099.0,0.00298948]
[1730597354647,0.9377223,69100.0,69099.0,0.00298948]
[1730597355820,0.9397223,69100.0,69099.0,0.00298948]
[1730597356677,0.9377223,69100.0,69099.0,0.00298948]
[1730597358346,0.9397223,69100.0,69099.0,0.00298948]
[1730597358555,0.90457949,69100.0,69099.0,0.00298948]
[1730597358761,0.93972868,69100.0,69099.0,0.00298948]
[1730597362901,0.90457949,69100.0,69099.0,0.00298948]
[1730597363191,0.93972442,69100.0,69099.0,0.00298948]
[1730597365771,0.93972401,69100.0,69099.0,0.00298948]
[1730597366600,0.93772401,69100.0,69099.0,0.00298948]
[1730597369920,0.93972401,69100.0,69099.0,0.00298948]
[1730597370132,0.93772401,69100.0,69099.0,0.00298948]
[1730597372967,0.90257949,69100.0,69099.0,0.00298948]
[1730597373253,0.93772662,69100.0,69099.0,0.00298948]
[1730597373811,0.96072662,69100.0,69099.0,0.00298948]
[1730597375125,0.61950962,69100.0,69099.0,0.00298948]
[1730597375312,0.76422662,69100.0,69099.0,0.00298948]
[1730597375941,0.76422662,69100.0,69099.0,0.00082]
[1730597379741,0.76421798,69100.0,69099.0,0.00082]
[1730597383316,0.72907949,69100.0,69099.0,0.00082]
[1730597383538,0.76421214,69100.0,69099.0,0.00082]
[1730597383754,0.72907949,69100.0,69099.0,0.00082]
[1730597383908,0.76421118,69100.0,69099.0,0.00082]
[1730597386962,0.76420783,69100.0,69099.0,0.00082]
[1730597390436,0.76420718,69100.0,69099.0,0.00082]
[1730597392101,0.76420749,69100.0,69099.0,0.00082]
[1730597393608,0.85650749,69100.0,69099.0,0.00082]
[1730597394431,0.85651064,69100.0,69099.0,0.00082]
[1730597402621,0.61949364,69100.0,69099.0,0.00082]
[1730597402829,0.47603839,69100.0,69099.0,0.00082]
[1730597403060,0.48103839,69100.0,69099.0,0.00082]
[1730597403260,0.48106114,69100.0,69099.0,0.00082]
[1730597403712,0.48106925,69100.0,69099.0,0.00082]
[1730597407067,0.48107606,69100.0,69099.0,0.00082]
[1730597414805,0.57507606,69100.0,69099.0,0.00082]
[1730597415295,0.71353131,69100.0,69099.0,0.00082]
[1730597415523,0.93434831,69100.0,69099.0,0.00082]
[1730597415958,0.78963131,69100.0,69099.0,0.00082]
[1730597416174,0.47607606,69100.0,69099.0,0.00082]
[1730597416400,0.47607606,69100.0,69099.0,0.00582]
[1730597416842,0.47607606,69100.0,69099.0,0.24370201]
[1730597417058,0.47607606,69100.0,69099.0,0.20032]
[1730597417269,0.47607606,69100.0,69099.0,0.26539301]
[1730597417903,0.45443371,69100.0,69099.0,0.26539301]
[1730597418570,0.45443371,69100.0,69099.0,0.20032]
[1730597418774,0.44943371,69100.0,69099.0,0.27702]
[1730597419023,0.44943371,69100.0,69099.0,0.34209301]
[1730597419232,0.45443371,69100.0,69099.0,0.50214899]
[1730597419501,0.45442285,69100.0,69099.0,0.54787662]
[1730597419714,0.45442285,69100.0,69099.0,0.45284791]
[1730597419917,0.44942285,69100.0,69099.0,0.75133118]
[1730597420106,0.43590724,69100.0,69099.0,0.69129445]
[1730597420658,0.43590724,69100.0,69099.0,0.68629445]
[1730597421997,0.43590724,69100.0,69099.0,0.79456972]
[1730597422427,0.43590724,69100.0,69099.0,0.68376908]
[1730597422639,0.43590724,69100.0,69099.0,0.57549381]
[1730597424342,0.43590724,69100.0,69099.0,0.6620696]
[1730597424552,0.43590724,69100.0,69099.0,0.57549381]
[1730597424762,0.43590724,69100.0,69099.0,0.66205188]
[1730597425643,0.43590724,69100.0,69099.0,0.57549381]
[1730597427129,0.43590724,69100.0,69099.0,0.64039203]
[1730597428362,0.43590724,69100.0,69099.0,0.48037347]
[1730597429148,0.43590724,69100.0,69099.0,0.4803581]
[1730597429562,0.43590724,69100.0,69099.0,0.41547525]
[1730597435279,0.43590724,69100.0,69099.0,0.45871232]
[1730597437594,0.43590724,69100.0,69099.0,0.58007098]
[1730597438281,0.43590724,69100.0,69099.0,0.58006257]
[1730597440825,0.43590724,69100.0,69099.0,0.57506257]
[1730597441462,0.43590724,69100.0,69099.0,0.58006257]
[1730597442925,0.43590724,69100.0,69099.0,0.58004857]
[1730597445010,0.43590724,69100.0,69099.0,0.50334857]
[1730597445189,0.43590724,69100.0,69099.0,0.40884857]
[1730597445390,0.43590724,69100.0,69099.0,0.40384857]
[1730597448547,0.43590724,69100.0,69099.0,0.51464921]
[1730597448799,0.43590724,69100.0,69099.0,0.10582]
[1730597449015,0.43590724,69100.0,69099.0,0.04905986]
[1730597449016,0.51660724,69100.0,69099.0,0.04905986]
[1730597449231,0.51660724,69100.0,69099.0,0.00582]
[1730597449899,0.52160724,69100.0,69099.0,0.00582]
[1730597451728,0.51660724,69100.0,69099.0,0.00582]
[1730597451939,0.52160724,69100.0,69099.0,0.00582]
[1730597452580,0.51660724,69100.0,69099.0,0.04905986]
[1730597452841,0.62662831,69100.0,69099.0,0.00082]
[1730597453066,0.64826038,69100.0,69099.0,0.00082]
[1730597453959,0.75906102,69100.0,69099.0,0.00082]
[1730597454180,0.76406102,69100.0,69099.0,0.00082]
[1730597454388,0.90877802,69100.0,69099.0,0.00082]
[1730597455225,1.04723327,69100.0,69099.0,0.00082]
[1730597455665,1.07223327,69100.0,69099.0,0.00082]
[1730597455911,1.07023327,69100.0,69099.0,0.00082]
[1730597457426,1.07023327,69100.0,69085.0,0.00082]
[1730597457427,0.005,69086.0,69085.0,0.00082]
[1730597457628,0.63024758,69086.0,69085.0,0.00082]
[1730597457828,0.62662831,69086.0,69085.0,0.00082]
[1730597459172,0.77137531,69086.0,69085.0,0.00082]
[1730597460500,0.91483056,69086.0,69085.0,0.00082]
[1730597461096,0.90130949,69086.0,69085.0,0.00082]
[1730597461300,0.91477924,69086.0,69085.0,0.00082]
[1730597462084,0.77003224,69086.0,69085.0,0.00082]
[1730597462292,0.91477214,69086.0,69085.0,0.00082]
[1730597463216,0.91677214,69086.0,69085.0,0.00082]
[1730597463419,0.91676583,69086.0,69085.0,0.00082]
[1730597463664,0.93829524,69086.0,69085.0,0.00082]
[1730597465348,0.91676583,69086.0,69085.0,0.00082]
[1730597466014,0.55715428,69083.0,69082.0,0.00217031]
[1730597466259,1.16648258,69083.0,69082.0,0.00217031]
[1730597466716,1.18948258,69083.0,69082.0,0.00217031]
[1730597466944,1.18944608,69083.0,69082.0,0.00217031]
[1730597467163,0.55516928,69076.0,69075.0,0.00082]
[1730597467398,1.16446108,69076.0,69075.0,0.00082]
[1730597467615,1.16646108,69076.0,69075.0,0.00082]
[1730597468062,1.18946108,69076.0,69075.0,0.00082]
[1730597470031,1.18746108,69076.0,69075.0,0.00082]
[1730597470511,1.15253177,69076.0,69075.0,0.00082]
[1730597470725,1.18737208,69076.0,69075.0,0.00082]
[1730597471420,1.07657144,69076.0,69075.0,0.00082]
[1730597471623,1.18737208,69076.0,69075.0,0.00082]
[1730597471857,1.07657144,69076.0,69075.0,0.00082]
[1730597472686,1.18737208,69076.0,69075.0,0.00082]
[1730597473960,1.15253177,69076.0,69075.0,0.00082]
[1730597474175,1.18734554,69076.0,69075.0,0.00082]
[1730597475102,1.0535449,69076.0,69075.0,0.00082]
[1730597477707,1.05356414,69076.0,69075.0,0.00082]
[1730597480273,0.90879614,69076.0,69075.0,0.00082]
[1730597480476,0.65954025,69076.0,69075.0,0.00082]
[1730597481099,0.62470724,69076.0,69075.0,0.00082]
[1730597481301,0.65958039,69076.0,69075.0,0.00082]
[1730597482108,0.55998039,69076.0,69075.0,0.00082]
[1730597482485,0.55498039,69076.0,69075.0,0.00082]
[1730597482740,0.47578039,69076.0,69075.0,0.00082]
[1730597484922,0.47585462,69076.0,69075.0,0.00082]
[1730597485122,0.44090724,69076.0,69075.0,0.00082]
[1730597485236,0.47585462,69076.0,69075.0,0.00082]
[1730597485488,0.47085462,69076.0,69075.0,0.21662064]
[1730597485681,0.45434854,69076.0,69075.0,0.21662064]
[1730597486007,0.44090724,69076.0,69075.0,0.21662064]
[1730597486191,0.44090724,69076.0,69075.0,0.10582]
[1730597486941,0.44090724,69076.0,69075.0,0.00582]
[1730597487139,0.43590724,69076.0,69075.0,0.00582]
[1730597487357,0.44090724,69076.0,69075.0,0.00582]
[1730597490870,0.44090724,69076.0,69075.0,0.10582]
[1730597491509,0.43590724,69076.0,69075.0,0.10582]
[1730597491757,0.44090724,69076.0,69075.0,0.10582]
[1730597492680,0.43590724,69076.0,69075.0,0.10582]
[1730597494011,0.43590724,69076.0,69075.0,0.24427525]
[1730597495006,0.43590724,69076.0,69075.0,0.35507589]
[1730597495246,0.43590724,69076.0,69075.0,0.77269889]
[1730597495835,0.43590724,69076.0,69075.0,0.93191584]
[1730597496657,0.43590724,69076.0,69075.0,0.77269889]
[1730597500468,0.43590724,69076.0,69075.0,0.80163889]
[1730597502332,0.43590724,69076.0,69075.0,0.96092721]
[1730597502550,0.43590724,69076.0,69075.0,0.98392721]
[1730597503676,0.43590724,69076.0,69075.0,0.74680421]
[1730597503911,0.43590724,69076.0,69075.0,0.85760485]
[1730597504124,0.43590724,69076.0,69075.0,2.29837685]
[1730597504548,0.43590724,69076.0,69075.0,2.18039844]
[1730597504766,0.43590724,69076.0,69075.0,2.07690444]
[1730597504960,0.43590724,69076.0,69075.0,2.06008444]
[1730597505836,0.43590724,69076.0,69075.0,1.9492838]
[1730597506508,0.43590724,69076.0,69075.0,1.7649908]
[1730597506713,0.43590724,69076.0,69075.0,1.4685908]
[1730597509061,0.43590724,69076.0,69075.0,1.46843474]
[1730597511267,0.43590724,69076.0,69075.0,1.57609203]
[1730597511511,0.43590724,69076.0,69075.0,1.46843474]
[1730597511727,0.43590724,69076.0,69075.0,1.57609111]
[1730597513718,0.43590724,69076.0,69075.0,1.57595692]
[1730597514687,0.43590724,69076.0,69075.0,0.85409392]
[1730597515070,0.43590724,69076.0,69075.0,2.02642592]
[1730597516090,0.43590724,69076.0,69075.0,1.97661292]
[1730597516317,0.43590724,69076.0,69075.0,1.86897258]
[1730597516730,0.43590724,69076.0,69075.0,0.17821525]
[1730597517924,0.43590724,69076.0,69075.0,0.27821525]
[1730597520952,0.43590724,69076.0,69075.0,0.27321525]
[1730597521206,0.43590724,69076.0,69075.0,0.00582]
[1730597521207,0.51170724,69076.0,69075.0,0.00582]
[1730597521865,0.51170724,69076.0,69075.0,0.10582]
[1730597525216,0.51170724,69076.0,69075.0,0.14890086]
[1730597526227,0.51170724,69076.0,69075.0,0.10582]
[1730597526507,0.51170724,69076.0,69075.0,0.17059221]
[1730597527253,0.61150724,69076.0,69075.0,0.33009163]
[1730597527459,0.61150724,69076.0,69075.0,0.10582]
[1730597528060,0.61150724,69076.0,69075.0,0.00582]
[1730597528299,0.61150724,69076.0,69075.0,0.04903335]
[1730597529353,0.61150724,69076.0,69075.0,0.14905617]
[1730597530386,0.61150724,69076.0,69075.0,0.10582]
[1730597531156,0.61150724,69076.0,69075.0,0.17059221]
[1730597531369,0.61150724,69076.0,69075.0,0.10582]
[1730597531569,0.61150724,69076.0,69075.0,0.17059221]
[1730597532409,0.61150724,69076.0,69075.0,0.10582]
[1730597533030,0.61150724,69076.0,69075.0,0.14907993]
[1730597533238,0.61650724,69076.0,69075.0,0.04907993]
[1730597533462,0.61650724,69076.0,69075.0,0.00082]
[1730597543660,0.76127524,69076.0,69075.0,0.00082]
[1730597545419,0.77474692,69076.0,69075.0,0.00082]
[1730597545864,0.79630004,69076.0,69075.0,0.00082]
[1730597546046,0.80130004,69076.0,69075.0,0.00082]
[1730597550017,0.80129215,69076.0,69075.0,0.00082]
[1730597554489,0.65652415,69076.0,69075.0,0.00082]
[1730597556406,0.65152415,69076.0,69075.0,0.00082]
[1730597556613,0.65651777,69076.0,69075.0,0.00082]
[1730597559683,0.65652729,69076.0,69075.0,0.00082]
[1730597559902,0.64652729,69076.0,69075.0,0.00082]
[1730597560140,0.61150724,69076.0,69075.0,0.00082]
[1730597560366,0.62997702,69076.0,69075.0,0.00582]
[1730597560805,0.45437702,69076.0,69075.0,0.00582]
[1730597561018,0.44090724,69076.0,69075.0,0.00582]
[1730597561442,0.43590724,69076.0,69075.0,0.00582]
[1730597561844,0.43590724,69076.0,69075.0,0.24427525]
[1730597562284,0.43590724,69076.0,69075.0,0.28749732]
[1730597562495,0.43590724,69076.0,69075.0,0.52420771]
[1730597562702,0.43590724,69076.0,69075.0,0.63226288]
[1730597562914,0.43590724,69076.0,69075.0,0.52420771]
[1730597563355,0.43590724,69076.0,69075.0,0.41340707]
[1730597566271,0.43590724,69076.0,69075.0,0.52420771]
[1730597568419,0.43590724,69076.0,69075.0,0.52620771]
[1730597568640,0.43590724,69076.0,69075.0,0.52420771]
[1730597578194,0.43590724,69076.0,69075.0,0.52406894]
[1730597578746,0.43590724,69076.0,69075.0,0.52405783]
[1730597579731,0.43590724,69076.0,69075.0,0.41325719]
[1730597580153,0.43590724,69076.0,69075.0,0.40825719]
[1730597580527,0.43590724,69076.0,69075.0,0.52131326]
[1730597580726,0.43590724,69076.0,69075.0,1.64056931]
[1730597581377,0.43590724,69076.0,69075.0,1.52055631]
[1730597581767,0.43590724,69076.0,69075.0,1.52255631]
[1730597583015,0.43590724,69076.0,69075.0,1.54555631]
[1730597583866,0.43590724,69076.0,69075.0,1.54323783]
[1730597584076,0.43590724,69076.0,69075.0,1.43742083]
[1730597584507,0.43590724,69076.0,69075.0,1.38233883]
[1730597584715,0.15114591,69076.0,69075.0,1.48002039]
[1730597584927,0.001642,69080.0,69079.0,0.012]
[1730597585139,0.001642,69080.0,69079.0,0.38425589]
[1730597585365,0.508302,69080.0,69079.0,1.37372109]
[1730597586463,0.508302,69080.0,69079.0,1.46008868]
[1730597586676,0.508302,69080.0,69079.0,1.37372109]
[1730597588362,0.508302,69080.0,69079.0,1.46006806]
[1730597592071,0.508302,69080.0,69079.0,1.5708687]
[1730597592404,0.508302,69080.0,69079.0,1.48452173]
[1730597593385,0.508302,69080.0,69079.0,1.37372109]
[1730597593520,0.508302,69080.0,69079.0,1.26292045]
[1730597594387,0.508302,69080.0,69079.0,1.37091655]
[1730597594715,0.508302,69080.0,69079.0,1.26292045]
[1730597594929,0.508302,69080.0,69079.0,1.43636102]
[1730597595337,0.508302,69080.0,69079.0,1.3064722]
[1730597595489,0.508302,69080.0,69079.0,1.3354122]
[1730597595904,0.508302,69080.0,69079.0,1.4106122]
[1730597596127,0.508302,69080.0,69079.0,1.4995921]
[1730597596319,0.508302,69080.0,69079.0,1.4127821]
[1730597597746,0.508302,69080.0,69079.0,1.0412651]
[1730597598387,0.508302,69080.0,69079.0,0.8793381]
[1730597599892,0.508302,69080.0,69079.0,0.87936565]
[1730597601600,0.604102,69080.0,69079.0,0.45377365]
[1730597601751,0.680002,69080.0,69079.0,0.55660965]
[1730597602974,0.680002,69080.0,69079.0,0.45377365]
[1730597603124,0.680002,69080.0,69079.0,1.12192565]
[1730597603331,0.680002,69080.0,69079.0,1.20658129]
[1730597603533,0.680002,69080.0,69079.0,1.12850329]
[1730597604125,0.680002,69080.0,69079.0,0.99560329]
[1730597604126,0.508302,69080.0,69079.0,0.99560329]
[1730597604334,0.508302,69080.0,69079.0,0.86606765]
[1730597604538,0.508302,69080.0,69079.0,0.86631616]
[1730597608075,0.508302,69080.0,69079.0,0.8939151]
[1730597608481,0.508302,69080.0,69079.0,0.8959151]
[1730597609132,0.508302,69080.0,69079.0,0.89611397]
[1730597609865,0.49777928,69080.0,69079.0,1.11686073]
[1730597610063,0.49777928,69080.0,69079.0,0.92505397]
[1730597613349,0.1717,69094.0,69093.0,0.012]
[1730597613564,0.21720401,69096.0,69095.0,0.012]
[1730597613760,0.21720401,69096.0,69095.0,0.35868902]
[1730597613974,0.17334,69099.0,69098.0,0.01]
[1730597614171,0.17334,69099.0,69098.0,0.24845525]
[1730597614172,0.67986,69099.0,69098.0,0.24845525]
[1730597614377,0.67986,69099.0,69098.0,0.63598619]
[1730597616927,0.67986,69099.0,69098.0,0.74878683]
[1730597617998,0.67986,69099.0,69098.0,0.74678683]
[1730597618395,0.67986,69099.0,69098.0,0.74666902]
[1730597620373,0.67986,69099.0,69098.0,0.74866902]
[1730597620599,0.50816,69099.0,69098.0,0.7768406]
[1730597620798,0.50816,69099.0,69098.0,0.88501017]
[1730597621563,0.50816,69099.0,69098.0,0.7768406]
[1730597622667,0.50816,69099.0,69098.0,0.88764124]
[1730597624115,0.50816,69099.0,69098.0,0.65994724]
[1730597624728,0.50816,69099.0,69098.0,2.66903424]
[1730597625076,0.50816,69099.0,69098.0,2.66386266]
[1730597625506,0.67986,69099.0,69098.0,1.07321802]
[1730597625707,0.67986,69099.0,69098.0,0.72223202]
[1730597627532,0.67986,69099.0,69098.0,0.72216002]
[1730597628446,0.67986,69099.0,69098.0,0.69126602]
[1730597629274,0.50816,69099.0,69098.0,0.69126602]
[1730597632025,0.50816,69099.0,69098.0,0.69126279]
[1730597633304,0.50816,69099.0,69098.0,0.82099573]
[1730597634668,0.50816,69099.0,69098.0,0.82299573]
[1730597635319,0.50816,69099.0,69098.0,0.67363273]
[1730597635729,0.50816,69099.0,69098.0,1.35409573]
[1730597636380,0.50816,69099.0,69098.0,1.35209573]
[1730597640038,0.50816,69099.0,69098.0,1.35409573]
[1730597642683,0.50816,69099.0,69098.0,1.39788609]
[1730597645454,0.50816,69099.0,69098.0,1.26815315]
[1730597646511,0.50816,69099.0,69098.0,0.61663015]
[1730597646688,0.50816,69099.0,69098.0,1.76442615]
[1730597648561,0.50816,69099.0,69098.0,1.74766515]
[1730597652457,0.50816,69099.0,69098.0,1.85846579]
[1730597652586,0.01147798,69099.0,69098.0,1.96795874]
[1730597652785,0.00164,69106.0,69105.0,0.035]
[1730597652988,0.00164,69106.0,69105.0,0.54389979]
[1730597653414,0.00164,69106.0,69105.0,2.21201379]
[1730597653617,0.00164,69106.0,69105.0,2.17592379]
[1730597654762,0.00164,69106.0,69105.0,1.81432779]
[1730597655201,0.00164,69106.0,69105.0,1.79335979]
[1730597655653,0.00164,69106.0,69105.0,1.79768983]
[1730597658106,0.00164,69106.0,69105.0,1.79792842]
[1730597658480,0.00164,69106.0,69105.0,0.54846842]
[1730597659073,0.00164,69106.0,69105.0,1.74109042]
[1730597661262,0.09604,69106.0,69105.0,1.74109042]
[1730597661713,0.17534,69106.0,69105.0,0.54646842]
[1730597661971,0.17534,69106.0,69105.0,0.85691142]
[1730597662621,0.17534,69106.0,69105.0,0.85696191]
[1730597662847,0.21720401,69111.0,69110.0,0.22080064]
[1730597663066,0.21720401,69111.0,69110.0,0.51918887]
[1730597663282,0.005,69122.0,69111.0,0.1]
[1730597663526,0.005,69122.0,69113.0,0.10831674]
[1730597663733,0.005,69122.0,69115.0,0.005]
[1730597663944,0.005,69122.0,69115.0,0.30338823]
[1730597664164,0.005,69122.0,69115.0,0.40338823]
[1730597664382,0.5155514,69116.0,69115.0,0.40338823]
[1730597665940,0.6892514,69116.0,69115.0,0.40338823]
[1730597666832,0.6892514,69116.0,69115.0,0.40786142]
[1730597677919,0.6892514,69116.0,69115.0,0.24792844]
[1730597678131,0.6908914,69116.0,69115.0,0.40787124]
[1730597681037,0.6908914,69116.0,69115.0,0.40787973]
[1730597686562,0.5171914,69116.0,69115.0,0.40787973]
[1730597686766,0.5171914,69116.0,69115.0,0.41287973]
[1730597686963,0.5171914,69116.0,69115.0,0.41785591]
[1730597688399,0.5171914,69116.0,69115.0,0.41287973]
[1730597698664,0.5171914,69116.0,69115.0,0.54287189]
[1730597699558,0.5171914,69116.0,69115.0,0.54317102]
[1730597702275,0.6909914,69116.0,69115.0,0.40804475]
[1730597704851,0.6909914,69116.0,69115.0,0.2695895]
[1730597705713,0.6909914,69116.0,69115.0,0.37800716]
[1730597706865,0.6959914,69116.0,69115.0,0.37353397]
[1730597707079,0.70950542,69116.0,69115.0,0.26511631]
[1730597707281,0.6959914,69116.0,69115.0,0.35184677]
[1730597707494,0.70950445,69116.0,69115.0,0.35184677]
[1730597708353,0.6959914,69116.0,69115.0,0.35184677]
[1730597708556,0.6959914,69116.0,69115.0,0.26511631]
[1730597708986,0.70950259,69116.0,69115.0,0.26511631]
[1730597709185,0.7095026,69116.0,69115.0,0.26511631]
[1730597709457,0.6959914,69116.0,69115.0,0.26511631]
[1730597710914,0.6959914,69116.0,69115.0,0.33013704]
[1730597711091,0.6959914,69116.0,69115.0,0.33003428]
[1730597711617,0.70949738,69116.0,69115.0,0.33003428]
[1730597711849,0.70949738,69116.0,69115.0,0.17001524]
[1730597712259,0.6959914,69116.0,69115.0,0.33001368]
[1730597712669,0.6959914,69116.0,69115.0,0.17001524]
[1730597714839,0.6959914,69116.0,69115.0,0.105]
[1730597716144,0.6959914,69116.0,69115.0,0.21580064]
[1730597716601,0.6118914,69116.0,69115.0,0.28081588]
[1730597716881,0.6118914,69116.0,69115.0,0.37575012]
[1730597716882,0.6168914,69116.0,69115.0,0.37575012]
[1730597717098,0.6168914,69116.0,69115.0,0.28079489]
[1730597717310,0.6118914,69116.0,69115.0,0.44094287]
[1730597717512,0.5221914,69116.0,69115.0,0.51420603]
[1730597719182,0.5171914,69116.0,69115.0,0.63962505]
[1730597719580,0.5171914,69116.0,69115.0,0.52882441]
[1730597722777,0.5171914,69116.0,69115.0,0.74172505]
[1730597723220,0.5171914,69116.0,69115.0,0.63092441]
[1730597723431,0.5171914,69116.0,69115.0,0.73972505]
[1730597723613,0.5171914,69116.0,69115.0,0.62892441]
[1730597724647,0.5171914,69116.0,69115.0,0.61430603]
[1730597726103,0.5171914,69116.0,69115.0,0.51920603]
[1730597734769,0.5171914,69116.0,69115.0,0.51914577]
[1730597736459,0.5171914,69116.0,69115.0,0.52114577]
[1730597736918,0.5171914,69116.0,69115.0,0.84573877]
[1730597738327,0.5171914,69116.0,69115.0,0.68584889]
[1730597739652,0.5171914,69116.0,69115.0,0.84573244]
[1730597739866,0.5171914,69116.0,69115.0,0.68584889]
[1730597740445,0.5171914,69116.0,69115.0,0.35925589]
[1730597740651,0.5171914,69116.0,69115.0,0.51913778]
[1730597740854,0.5171914,69116.0,69115.0,0.35925589]
[1730597741061,0.5171914,69116.0,69115.0,0.91411589]
[1730597741881,0.5171914,69116.0,69115.0,1.04791653]
[1730597742113,0.5171914,69116.0,69115.0,1.06565019]
[1730597742347,0.5171914,69116.0,69115.0,0.95484955]
[1730597742539,0.5171914,69116.0,69115.0,1.24466127]
[1730597742742,0.5171914,69116.0,69115.0,1.35546191]
[1730597742970,0.5171914,69116.0,69115.0,1.3554488]
[1730597743179,0.5171914,69116.0,69115.0,1.24464816]
[1730597744221,0.5171914,69116.0,69115.0,1.09698728]
[1730597744440,0.5171914,69116.0,69115.0,1.20778792]
[1730597744695,0.5171914,69116.0,69115.0,1.44665297]
[1730597745316,0.5171914,69116.0,69115.0,1.40582158]
[1730597750790,0.5171914,69116.0,69115.0,1.44962799]
[1730597750918,0.5171914,69116.0,69115.0,1.43189433]
[1730597751553,0.5171914,69116.0,69115.0,1.38808792]
[1730597751810,0.5171914,69116.0,69115.0,1.43189939]
[1730597752177,0.5171914,69116.0,69115.0,0.87703939]
[1730597752351,0.5171914,69116.0,69115.0,5.04577839]
[1730597752551,0.5171914,69116.0,69115.0,5.26959834]
[1730597752872,0.5171914,69116.0,69115.0,4.79932534]
[1730597753030,0.5171914,69116.0,69115.0,3.97673834]
[1730597753230,0.5171914,69116.0,69115.0,4.00567834]
[1730597757110,0.5171914,69116.0,69115.0,3.92247834]
[1730597757325,0.5171914,69116.0,69115.0,3.92047834]
[1730597757531,0.5171914,69116.0,69115.0,1.8328227]
[1730597757738,0.5171914,69116.0,69115.0,1.60900275]
[1730597758731,0.5171914,69116.0,69115.0,1.59407975]
[1730597758907,0.5171914,69116.0,69115.0,1.48223975]
[1730597759108,0.5171914,69116.0,69115.0,1.68844039]
[1730597759320,0.5171914,69116.0,69115.0,1.70639051]
[1730597760322,0.5171914,69116.0,69115.0,1.8980814]
[1730597760901,0.5171914,69116.0,69115.0,1.89799196]
[1730597761549,0.5171914,69116.0,69115.0,1.7062795]
[1730597762418,0.5171914,69116.0,69115.0,1.89799403]
[1730597762607,0.5171914,69116.0,69115.0,1.01468291]
[1730597762844,0.47233269,69116.0,69115.0,0.82296838]
[1730597763066,0.44485265,69116.0,69115.0,0.82296838]
[1730597763256,0.44485265,69116.0,69115.0,4.00884138]
[1730597763498,0.44485265,69116.0,69115.0,4.23250592]
[1730597763709,0.44485265,69116.0,69115.0,4.12928292]
[1730597764995,0.44485265,69116.0,69115.0,4.12932128]
[1730597769517,0.44485265,69116.0,69115.0,4.01698728]
[1730597769722,0.44485265,69116.0,69115.0,3.84733028]
[1730597770718,0.44485265,69116.0,69115.0,2.89746728]
[1730597770939,0.44485265,69116.0,69115.0,1.54588664]
[1730597771253,0.44485265,69116.0,69115.0,1.40821963]
[1730597771466,0.44485265,69116.0,69115.0,1.18169026]
[1730597771664,0.44485265,69116.0,69115.0,1.31152163]
[1730597772408,0.44485265,69116.0,69115.0,1.19616563]
[1730597772616,0.44485265,69116.0,69115.0,1.29616563]
[1730597772833,0.44485265,69116.0,69115.0,1.16633426]
[1730597773047,0.44485265,69116.0,69115.0,1.21015607]
[1730597773689,0.44485265,69116.0,69115.0,1.32095671]
[1730597773943,0.44485265,69116.0,69115.0,1.59477371]
[1730597774163,0.44485265,69116.0,69115.0,1.46563071]
[1730597774784,0.44485265,69116.0,69115.0,1.35483007]
[1730597775657,0.44485265,69116.0,69115.0,1.46563071]